bitfinex/quotes_BTCUSD_20240730
["timestamp","ask_amount","ask_price","bid_price","bid_amount"]
[1722297742882,3.29325228,66887.0,66886.0,0.009251]
[1722297743112,3.30725228,66887.0,66886.0,0.009251]
[1722297743548,3.29727147,66887.0,66886.0,0.009251]
[1722297743760,3.19820176,66887.0,66886.0,0.009251]
[1722297744437,3.14584751,66887.0,66886.0,0.009251]
[1722297744610,3.18420176,66887.0,66886.0,0.009251]
[1722297744749,3.18820176,66887.0,66886.0,0.009251]
[1722297744961,3.32013703,66887.0,66886.0,0.009251]
[1722297745162,3.31613703,66887.0,66886.0,0.009251]
[1722297745390,3.30213703,66887.0,66886.0,0.009251]
[1722297745631,3.33013703,66887.0,66886.0,0.009251]
[1722297745977,3.31613703,66887.0,66886.0,0.009251]
[1722297746349,3.30613703,66887.0,66886.0,0.009251]
[1722297746580,3.04553951,66887.0,66886.0,0.009251]
[1722297746732,3.32013069,66887.0,66886.0,0.009251]
[1722297746956,3.33013069,66887.0,66886.0,0.009251]
[1722297747855,3.31613069,66887.0,66886.0,0.009251]
[1722297748101,3.33013069,66887.0,66886.0,0.004251]
[1722297749677,3.04553951,66887.0,66886.0,0.004251]
[1722297749901,3.06364193,66887.0,66886.0,0.004251]
[1722297750129,3.32994193,66887.0,66886.0,0.004251]
[1722297751062,3.04964193,66887.0,66886.0,0.004251]
[1722297751288,2.99693093,66887.0,66886.0,0.004251]
[1722297751522,3.00093093,66887.0,66886.0,0.004251]
[1722297751752,3.02093093,66887.0,66886.0,0.004251]
[1722297752714,2.71652851,66887.0,66886.0,0.004251]
[1722297752930,1.89612329,66887.0,66886.0,0.004251]
[1722297753152,1.89612329,66887.0,66886.0,0.083251]
[1722297753657,1.44507592,66887.0,66886.0,0.143251]
[1722297754354,1.43107592,66887.0,66886.0,0.143251]
[1722297754600,1.57217531,66887.0,66886.0,0.143251]
[1722297755791,1.72788053,66887.0,66886.0,0.004251]
[1722297756019,2.01409584,66887.0,66886.0,0.004251]
[1722297756269,2.00209584,66887.0,66886.0,0.004251]
[1722297756712,2.01209584,66887.0,66886.0,0.004251]
[1722297756926,2.09409584,66887.0,66886.0,0.004251]
[1722297757150,2.82820684,66887.0,66886.0,0.004251]
[1722297757373,2.84120684,66887.0,66886.0,0.004251]
[1722297757582,2.86120684,66887.0,66886.0,0.004251]
[1722297758016,2.88582289,66887.0,66886.0,0.004251]
[1722297758243,2.96120684,66887.0,66886.0,0.004251]
[1722297758463,3.02805438,66887.0,66886.0,0.004251]
[1722297758941,2.64399153,66887.0,66886.0,0.004251]
[1722297759159,2.93007505,66887.0,66886.0,0.004251]
[1722297759379,2.91502647,66887.0,66886.0,0.004251]
[1722297759607,2.82507505,66887.0,66886.0,0.004251]
[1722297759844,2.8920502,66887.0,66886.0,0.004251]
[1722297760066,2.83507505,66887.0,66886.0,0.004251]
[1722297760308,2.92434362,66887.0,66886.0,0.004251]
[1722297760520,2.84807505,66887.0,66886.0,0.004251]
[1722297760728,2.93740659,66887.0,66886.0,0.004251]
[1722297761158,2.88410659,66887.0,66886.0,0.004251]
[1722297761416,2.90636076,66887.0,66886.0,0.004251]
[1722297761648,2.78977505,66887.0,66886.0,0.004251]
[1722297761862,2.86113858,66887.0,66886.0,0.004251]
[1722297762086,2.88713858,66887.0,66886.0,0.004251]
[1722297762318,2.87506188,66887.0,66886.0,0.004251]
[1722297762551,2.7846982,66887.0,66886.0,0.004251]
[1722297762763,2.78469421,66887.0,66886.0,0.004251]
[1722297762970,2.79869421,66887.0,66886.0,0.004251]
[1722297763171,2.79953421,66887.0,66886.0,0.004251]
[1722297764276,2.80953421,66887.0,66886.0,0.004251]
[1722297764447,2.80956027,66887.0,66886.0,0.004251]
[1722297765479,2.78669812,66887.0,66886.0,0.004251]
[1722297765676,2.78669812,66887.0,66886.0,0.147451]
[1722297765677,1.36694142,66887.0,66886.0,0.147451]
[1722297765876,0.39713934,66887.0,66886.0,0.147451]
[1722297766086,0.22327091,66887.0,66886.0,0.147451]
[1722297766483,0.67178691,66887.0,66886.0,0.147451]
[1722297766684,0.97079791,66887.0,66886.0,0.147451]
[1722297767013,0.67178691,66887.0,66886.0,0.147451]
[1722297767593,1.38331922,66887.0,66886.0,0.147451]
[1722297767793,1.50288647,66887.0,66886.0,0.147451]
[1722297768021,1.54581902,66887.0,66886.0,0.147451]
[1722297768468,1.4117218,66887.0,66886.0,0.147451]
[1722297768692,1.44528414,66887.0,66886.0,0.147451]
[1722297768941,1.33522119,66887.0,66886.0,0.147451]
[1722297769165,1.28278166,66887.0,66886.0,0.147451]
[1722297769619,1.37228206,66887.0,66886.0,0.147451]
[1722297769883,1.35828206,66887.0,66886.0,0.147451]
[1722297770290,1.26878166,66887.0,66886.0,0.147451]
[1722297770509,1.08164738,66887.0,66886.0,0.147451]
[1722297770728,0.73789861,66887.0,66886.0,0.147451]
[1722297770963,0.22224366,66887.0,66886.0,0.147451]
[1722297771197,0.13811091,66887.0,66886.0,0.147451]
[1722297771476,0.30161591,66887.0,66886.0,0.147451]
[1722297772149,0.02784,66887.0,66886.0,0.44005839]
[1722297772359,0.02784,66887.0,66886.0,0.29055039]
[1722297772992,0.02784,66887.0,66886.0,0.44005839]
[1722297773192,0.02784,66887.0,66886.0,0.73907439]
[1722297773390,0.11189097,66897.0,66886.0,0.73907439]
[1722297773391,0.04475638,66894.0,66892.0,0.298989]
[1722297773598,0.04475638,66897.0,66893.0,0.29259039]
[1722297773810,0.04475638,66897.0,66896.0,0.0823]
[1722297773811,0.149484,66897.0,66896.0,0.0823]
[1722297774051,0.149484,66897.0,66896.0,0.1473]
[1722297775908,0.448451,66897.0,66896.0,0.1473]
[1722297777177,0.449451,66897.0,66896.0,0.1543]
[1722297777760,0.748418,66897.0,66896.0,0.1543]
[1722297777965,0.82646639,66897.0,66896.0,0.1543]
[1722297778173,1.12543339,66897.0,66896.0,0.1543]
[1722297779338,1.047385,66897.0,66896.0,0.1543]
[1722297779746,1.346352,66897.0,66896.0,0.1543]
[1722297779877,1.63450307,66897.0,66896.0,0.007]
[1722297780075,1.5674638,66897.0,66896.0,0.007]
[1722297780482,1.71056319,66897.0,66896.0,0.007]
[1722297780685,1.675679,66897.0,66896.0,0.007]
[1722297780897,1.79993598,66897.0,66896.0,0.007]
[1722297781317,1.79993598,66897.0,66896.0,0.01]
[1722297781520,1.82230805,66897.0,66896.0,0.01]
[1722297782138,1.71057593,66897.0,66896.0,0.01]
[1722297782773,1.82226956,66897.0,66896.0,0.01]
[1722297783185,1.71058103,66897.0,66896.0,0.01]
[1722297783594,2.0066018,66897.0,66896.0,0.01]
[1722297784004,1.71058103,66897.0,66896.0,0.01]
[1722297784207,1.76301922,66897.0,66896.0,0.01]
[1722297785476,1.76301742,66897.0,66896.0,0.01]
[1722297785895,2.24959331,66897.0,66896.0,0.01]
[1722297786096,2.11551476,66897.0,66896.0,0.01]
[1722297786309,2.11552583,66897.0,66896.0,0.01]
[1722297786518,2.75609283,66897.0,66896.0,0.01]
[1722297786781,2.90689715,66897.0,66896.0,0.01]
[1722297786965,2.76609283,66897.0,66896.0,0.01]
[1722297787173,2.76643784,66897.0,66896.0,0.01]
[1722297787378,3.06540484,66897.0,66896.0,0.01]
[1722297787583,3.06540484,66897.0,66896.0,0.007]
[1722297788010,3.07140484,66897.0,66896.0,0.008]
[1722297788218,2.77243784,66897.0,66896.0,0.008]
[1722297788958,3.07140484,66897.0,66896.0,0.008]
[1722297789158,3.07140484,66897.0,66896.0,0.007]
[1722297789159,3.07437217,66897.0,66896.0,0.007]
[1722297789667,3.07483014,66897.0,66896.0,0.007]
[1722297790075,1.65456,66887.0,66886.0,0.004251]
[1722297790276,2.63753681,66887.0,66886.0,0.004251]
[1722297790487,2.62753681,66887.0,66886.0,0.004251]
[1722297790694,2.62741145,66887.0,66886.0,0.004251]
[1722297790894,2.63741145,66887.0,66886.0,0.004251]
[1722297791302,2.77829851,66887.0,66886.0,0.004251]
[1722297791505,2.62741145,66887.0,66886.0,0.004251]
[1722297792115,2.77830928,66887.0,66886.0,0.004251]
[1722297792319,2.62741145,66887.0,66886.0,0.004251]
[1722297792954,2.62748371,66887.0,66886.0,0.007251]
[1722297793565,2.33628795,66887.0,66886.0,0.007251]
[1722297793765,2.33728795,66887.0,66886.0,0.070251]
[1722297793992,1.83027393,66887.0,66886.0,0.070251]
[1722297794696,1.96441921,66887.0,66886.0,0.070251]
[1722297794902,1.66771337,66887.0,66886.0,0.070251]
[1722297795076,1.71296474,66887.0,66886.0,0.070251]
[1722297795689,1.76540881,66887.0,66886.0,0.070251]
[1722297795905,1.97840881,66887.0,66886.0,0.007251]
[1722297796103,2.23156608,66887.0,66886.0,0.007251]
[1722297798338,2.18631471,66887.0,66886.0,0.007251]
[1722297799472,2.18661178,66887.0,66886.0,0.007251]
[1722297799900,2.33754111,66887.0,66886.0,0.007251]
[1722297800129,2.18661178,66887.0,66886.0,0.007251]
[1722297801781,2.18661178,66887.0,66886.0,0.149051]
[1722297801782,1.32113877,66887.0,66886.0,0.149051]
[1722297802036,0.67067298,66887.0,66886.0,0.149051]
[1722297802259,0.19522541,66887.0,66886.0,0.149051]
[1722297802487,0.748527,66887.0,66886.0,0.149051]
[1722297802728,0.79324619,66887.0,66886.0,0.149051]
[1722297802968,0.001,66887.0,66886.0,0.149051]
[1722297803174,0.19522429,66887.0,66886.0,0.149051]
[1722297803384,0.49423529,66887.0,66886.0,0.149051]
[1722297803587,0.61849485,66887.0,66886.0,0.149051]
[1722297803970,0.49423529,66887.0,66886.0,0.149051]
[1722297804424,0.61849481,66887.0,66886.0,0.149051]
[1722297804873,1.00912973,66887.0,66886.0,0.149051]
[1722297805095,0.98792938,66887.0,66886.0,0.149051]
[1722297805324,1.1242959,66887.0,66886.0,0.149051]
[1722297805553,1.76704938,66887.0,66886.0,0.149051]
[1722297805778,1.76704938,66887.0,66886.0,0.007251]
[1722297805779,2.28962254,66887.0,66886.0,0.007251]
[1722297805991,3.09126688,66887.0,66886.0,0.007251]
[1722297806203,3.23931793,66887.0,66886.0,0.007251]
[1722297806417,3.24931793,66887.0,66886.0,0.007251]
[1722297807064,3.24831793,66887.0,66886.0,0.007251]
[1722297807268,1.877786,66878.0,66877.0,0.0244902]
[1722297807470,2.66558946,66878.0,66877.0,0.0244902]
[1722297808436,3.12244146,66878.0,66877.0,0.0244902]
[1722297808653,2.89788127,66878.0,66877.0,0.0244902]
[1722297808879,3.27703122,66878.0,66877.0,0.0244902]
[1722297809117,3.27703122,66878.0,66871.0,0.009251]
[1722297809118,0.626417,66872.0,66871.0,0.009251]
[1722297809342,0.626417,66872.0,66856.0,0.009262]
[1722297809343,0.01,66861.0,66856.0,0.009262]
[1722297809624,1.97161988,66861.0,66856.0,0.009262]
[1722297809862,2.98032583,66861.0,66856.0,0.009262]
[1722297810316,2.99032583,66861.0,66856.0,0.009262]
[1722297810546,2.132242,66857.0,66856.0,0.009262]
[1722297810777,2.18134583,66857.0,66856.0,0.009262]
[1722297811009,2.63829083,66857.0,66856.0,0.009262]
[1722297811234,2.66129083,66857.0,66856.0,0.009262]
[1722297811697,2.36291842,66857.0,66856.0,0.009262]
[1722297811935,2.25082628,66857.0,66856.0,0.009262]
[1722297812168,2.19835327,66857.0,66856.0,0.009262]
[1722297812371,2.17535327,66857.0,66856.0,0.009262]
[1722297812584,2.28697115,66857.0,66856.0,0.009262]
[1722297812814,2.17535327,66857.0,66856.0,0.009262]
[1722297813076,2.2869708,66857.0,66856.0,0.009262]
[1722297813541,2.18935327,66857.0,66856.0,0.009262]
[1722297813970,2.35344274,66857.0,66856.0,0.009262]
[1722297814187,2.36629397,66857.0,66856.0,0.009262]
[1722297814406,2.45052093,66857.0,66856.0,0.009262]
[1722297814619,2.12621944,66857.0,66856.0,0.009262]
[1722297814835,2.17433937,66857.0,66856.0,0.009262]
[1722297815046,2.17433937,66857.0,66856.0,0.089162]
[1722297815047,1.32160497,66857.0,66856.0,0.089162]
[1722297815276,1.1993511,66857.0,66856.0,0.089162]
[1722297815560,0.9002061,66857.0,66856.0,0.089162]
[1722297815789,0.8862061,66857.0,66856.0,0.089162]
[1722297816009,0.8852061,66857.0,66856.0,0.089162]
[1722297816692,1.30878471,66857.0,66856.0,0.089162]
[1722297817139,1.29578471,66857.0,66856.0,0.089162]
[1722297817570,1.1813511,66857.0,66856.0,0.089162]
[1722297817791,1.18133254,66857.0,66856.0,0.089162]
[1722297818263,1.18133254,66857.0,66856.0,0.009262]
[1722297818264,2.10240461,66857.0,66856.0,0.009262]
[1722297818561,1.66016022,66857.0,66856.0,0.009262]
[1722297818783,1.17733254,66857.0,66856.0,0.009262]
[1722297819042,1.17133254,66857.0,66856.0,0.009262]
[1722297819266,1.17933254,66857.0,66856.0,0.009262]
[1722297819494,1.25171516,66857.0,66856.0,0.009262]
[1722297819724,1.17633254,66857.0,66856.0,0.009262]
[1722297820119,1.24783081,66857.0,66856.0,0.009262]
[1722297820433,1.3909302,66857.0,66856.0,0.009262]
[1722297820789,1.39093827,66857.0,66856.0,0.009262]
[1722297821162,1.39293827,66857.0,66856.0,0.009262]
[1722297821343,1.39693827,66857.0,66856.0,0.009262]
[1722297821490,1.25383888,66857.0,66856.0,0.009262]
[1722297821969,1.18234061,66857.0,66856.0,0.009262]
[1722297822401,0.88319561,66857.0,66856.0,0.009262]
[1722297823251,1.18234061,66857.0,66856.0,0.009262]
[1722297823478,1.28958192,66857.0,66856.0,0.009262]
[1722297823893,1.16524831,66857.0,66856.0,0.009262]
[1722297824021,1.28957529,66857.0,66856.0,0.009262]
[1722297824226,1.65902521,66857.0,66856.0,0.009262]
[1722297824433,1.35988021,66857.0,66856.0,0.009262]
[1722297825287,1.40449914,66857.0,66856.0,0.009262]
[1722297825692,1.2526389,66857.0,66856.0,0.009262]
[1722297826899,1.12831192,66857.0,66856.0,0.009262]
[1722297827100,1.25264429,66857.0,66856.0,0.009262]
[1722297828319,1.55178929,66857.0,66856.0,0.009262]
[1722297828537,1.25264429,66857.0,66856.0,0.009262]
[1722297828738,1.39574368,66857.0,66856.0,0.009262]
[1722297830087,0.95349929,66857.0,66856.0,0.073662]
[1722297830335,0.95349789,66857.0,66856.0,0.073662]
[1722297830739,0.88319297,66857.0,66856.0,0.073662]
[1722297831343,0.58404797,66857.0,66856.0,0.073662]
[1722297831544,0.011,66857.0,66856.0,0.29706139]
[1722297832783,0.004,66857.0,66856.0,0.29706139]
[1722297832989,0.452717,66857.0,66856.0,0.29706139]
[1722297833184,0.01,66857.0,66856.0,0.29706139]
[1722297833583,0.448717,66857.0,66856.0,0.29706139]
[1722297833830,0.149572,66857.0,66856.0,0.29706139]
[1722297834145,0.152572,66857.0,66856.0,0.29706139]
[1722297834584,0.452717,66857.0,66856.0,0.29806139]
[1722297838158,1.1262761,66857.0,66856.0,0.154962]
[1722297838385,1.25158025,66857.0,66856.0,0.157962]
[1722297838619,1.17631115,66857.0,66856.0,0.157962]
[1722297839070,1.25411584,66857.0,66856.0,0.157962]
[1722297839782,1.25412809,66857.0,66856.0,0.157962]
[1722297840523,1.25012809,66857.0,66856.0,0.156962]
[1722297840747,1.25112809,66857.0,66856.0,0.157962]
[1722297840966,1.25112809,66857.0,66856.0,0.156962]
[1722297841193,1.65832145,66857.0,66856.0,0.012262]
[1722297841653,2.11793476,66857.0,66856.0,0.012262]
[1722297841856,2.22964356,66857.0,66856.0,0.012262]
[1722297842057,2.11794718,66857.0,66856.0,0.012262]
[1722297843427,2.11794718,66857.0,66856.0,0.011262]
[1722297843624,2.11794718,66857.0,66856.0,0.012262]
[1722297843625,2.11894718,66857.0,66856.0,0.012262]
[1722297844046,2.11794718,66857.0,66856.0,0.010262]
[1722297844246,2.13194718,66857.0,66856.0,0.010262]
[1722297844503,1.72475382,66857.0,66856.0,0.010262]
[1722297844708,1.51495005,66857.0,66856.0,0.075162]
[1722297844861,1.50095005,66857.0,66856.0,0.157962]
[1722297845101,1.38259684,66857.0,66856.0,0.157962]
[1722297845298,1.33015569,66857.0,66856.0,0.157962]
[1722297845504,1.26314165,66857.0,66856.0,0.157962]
[1722297845824,1.3301559,66857.0,66856.0,0.157962]
[1722297846410,1.26314165,66857.0,66856.0,0.157962]
[1722297846796,1.35246684,66857.0,66856.0,0.157962]
[1722297846995,1.67038127,66857.0,66856.0,0.010262]
[1722297847213,1.63352024,66857.0,66856.0,0.010262]
[1722297847427,1.85505334,66857.0,66856.0,0.010262]
[1722297847861,1.86405334,66857.0,66856.0,0.010262]
[1722297848067,1.97580353,66857.0,66856.0,0.010262]
[1722297848286,1.85511799,66857.0,66856.0,0.010262]
[1722297848516,1.56597299,66857.0,66856.0,0.010262]
[1722297848944,1.55597299,66857.0,66856.0,0.010262]
[1722297849155,1.85511799,66857.0,66856.0,0.010262]
[1722297849359,1.4218736,66857.0,66856.0,0.010262]
[1722297849577,1.4218736,66857.0,66856.0,0.009262]
[1722297849578,1.369999,66857.0,66856.0,0.009262]
[1722297849789,1.32525055,66857.0,66856.0,0.074162]
[1722297850000,1.31488383,66857.0,66856.0,0.074162]
[1722297850242,1.33725055,66857.0,66856.0,0.151962]
[1722297850451,0.67185638,66857.0,66856.0,0.151962]
[1722297850662,0.72061353,66857.0,66856.0,0.151962]
[1722297850868,0.13333469,66857.0,66856.0,0.29506139]
[1722297851082,0.158572,66857.0,66856.0,0.29506139]
[1722297851280,0.002,66857.0,66856.0,0.29506139]
[1722297851696,0.159572,66857.0,66856.0,0.29506139]
[1722297851900,0.01,66857.0,66856.0,0.29506139]
[1722297852102,0.00084,66860.0,66856.0,0.15236139]
[1722297852306,0.00084,66860.0,66858.0,0.0626]
[1722297852508,0.00084,66860.0,66859.0,0.28759939]
[1722297853511,0.00184,66860.0,66859.0,0.28759939]
[1722297853830,0.0368145,66860.0,66859.0,0.28759939]
[1722297854881,0.0358145,66860.0,66859.0,0.28759939]
[1722297855718,0.0368145,66860.0,66859.0,0.43916739]
[1722297855893,0.0368145,66860.0,66859.0,1.03743939]
[1722297856303,0.0368145,66860.0,66859.0,0.73830339]
[1722297856304,0.00184,66860.0,66859.0,0.73830339]
[1722297856531,0.00184,66860.0,66859.0,0.76130339]
[1722297856983,0.00184,66860.0,66859.0,1.06043939]
[1722297857730,0.00184,66860.0,66859.0,1.08043939]
[1722297858052,0.00084,66860.0,66859.0,0.31059939]
[1722297858408,0.7884199,66860.0,66859.0,0.29759939]
[1722297858750,0.7874199,66860.0,66859.0,0.28759939]
[1722297858970,0.0395899,66860.0,66859.0,0.43716739]
[1722297859167,0.0405899,66860.0,66859.0,0.76830339]
[1722297859371,0.0405899,66860.0,66859.0,1.36857539]
[1722297859372,0.00184,66860.0,66859.0,1.36857539]
[1722297859993,0.00184,66860.0,66859.0,1.39157539]
[1722297860192,0.00084,66860.0,66859.0,1.05843939]
[1722297860455,0.00084,66860.0,66859.0,1.08043939]
[1722297860648,0.00184,66860.0,66859.0,1.08143939]
[1722297860963,0.00184,66860.0,66859.0,1.05943939]
[1722297861180,0.02530191,66860.0,66859.0,1.05943939]
[1722297861598,0.00284,66860.0,66859.0,0.45016739]
[1722297861807,0.152406,66860.0,66859.0,0.30059939]
[1722297862015,0.00284,66860.0,66859.0,0.28859939]
[1722297862224,0.151406,66860.0,66859.0,0.28859939]
[1722297862432,0.78228482,66860.0,66859.0,0.29959939]
[1722297862861,0.78128482,66860.0,66859.0,0.28759939]
[1722297863111,0.48315282,66860.0,66859.0,0.28951239]
[1722297863343,0.03445482,66860.0,66859.0,0.28951239]
[1722297863545,0.48315282,66860.0,66859.0,0.28951239]
[1722297863751,0.48415282,66860.0,66859.0,0.30151239]
[1722297863957,0.18502082,66860.0,66859.0,0.30151239]
[1722297864522,0.20848512,66860.0,66859.0,0.30151239]
[1722297865836,0.48415282,66860.0,66859.0,0.30151239]
[1722297866224,0.48215282,66860.0,66859.0,0.28851239]
[1722297866429,0.18302082,66860.0,66859.0,0.30051239]
[1722297866650,0.18402082,66860.0,66859.0,0.30051239]
[1722297866862,0.48315282,66860.0,66859.0,0.30051239]
[1722297867072,0.48215282,66860.0,66859.0,0.28851239]
[1722297867273,0.78228482,66860.0,66859.0,0.30051239]
[1722297867893,0.78128482,66860.0,66859.0,0.28851239]
[1722297868080,0.78128482,66860.0,66859.0,0.30051239]
[1722297868218,0.78228482,66860.0,66859.0,0.30051239]
[1722297868428,0.48315282,66860.0,66859.0,0.30051239]
[1722297869003,0.78228482,66860.0,66859.0,0.30051239]
[1722297869172,0.80574921,66860.0,66859.0,0.30051239]
[1722297869379,0.78228482,66860.0,66859.0,0.30051239]
[1722297869540,0.78128482,66860.0,66859.0,0.28851239]
[1722297869735,0.78228482,66860.0,66859.0,0.30051239]
[1722297869944,0.78328482,66860.0,66859.0,0.30151239]
[1722297870365,0.78228482,66860.0,66859.0,0.28951239]
[1722297870603,0.78328482,66860.0,66859.0,0.30151239]
[1722297872709,0.80674934,66860.0,66859.0,0.30151239]
[1722297873146,0.62372852,66860.0,66859.0,0.30151239]
[1722297873369,0.77329452,66860.0,66859.0,0.30151239]
[1722297873818,1.07242652,66860.0,66859.0,0.013913]
[1722297875554,1.19673586,66860.0,66859.0,0.013913]
[1722297876534,1.19673586,66860.0,66859.0,0.009913]
[1722297876943,0.89760386,66860.0,66859.0,0.009913]
[1722297877121,0.77329452,66860.0,66859.0,0.009913]
[1722297877350,1.07242652,66860.0,66859.0,0.009913]
[1722297878539,1.19673201,66860.0,66859.0,0.009913]
[1722297880459,0.89760001,66860.0,66859.0,0.009913]
[1722297880648,1.19672822,66860.0,66859.0,0.009913]
[1722297881743,0.89759622,66860.0,66859.0,0.009913]
[1722297882433,1.19672822,66860.0,66859.0,0.009913]
[1722297882976,0.77329452,66860.0,66859.0,0.009913]
[1722297883201,1.00665346,66860.0,66859.0,0.009913]
[1722297884076,1.30578546,66860.0,66859.0,0.009913]
[1722297884278,1.00665346,66860.0,66859.0,0.009913]
[1722297884479,1.30578546,66860.0,66859.0,0.009913]
[1722297884729,1.30574926,66860.0,66859.0,0.009913]
[1722297884935,1.00661726,66860.0,66859.0,0.009913]
[1722297886034,1.00661726,66860.0,66859.0,0.15301239]
[1722297886035,0.70748526,66860.0,66859.0,0.15301239]
[1722297886450,0.70748362,66860.0,66859.0,0.15301239]
[1722297886902,0.47416252,66860.0,66859.0,0.15301239]
[1722297889677,0.17503052,66860.0,66859.0,0.15301239]
[1722297890541,0.77329452,66860.0,66859.0,0.15301239]
[1722297890760,0.47416252,66860.0,66859.0,0.15301239]
[1722297890970,0.5984578,66860.0,66859.0,0.15301239]
[1722297891185,0.7081538,66860.0,66859.0,0.15301239]
[1722297891398,0.02546452,66860.0,66859.0,0.74601639]
[1722297891626,0.02546452,66860.0,66859.0,0.44688039]
[1722297892046,0.02546452,66860.0,66859.0,0.29731239]
[1722297892690,0.002,66860.0,66859.0,0.29731239]
[1722297895831,0.002,66860.0,66859.0,0.29822539]
[1722297896050,0.02629413,66860.0,66859.0,0.29822539]
[1722297896273,0.00283,66860.0,66859.0,0.29822539]
[1722297896500,0.94207372,66860.0,66859.0,0.15392539]
[1722297896721,1.37181161,66860.0,66859.0,0.15392539]
[1722297896945,1.37181161,66860.0,66859.0,0.010826]
[1722297896946,1.42542037,66860.0,66859.0,0.010826]
[1722297897171,1.28232098,66860.0,66859.0,0.010826]
[1722297897841,1.09503402,66860.0,66859.0,0.010826]
[1722297898058,1.09503402,66860.0,66859.0,0.15392539]
[1722297898059,0.68405698,66860.0,66859.0,0.15392539]
[1722297898267,0.49626711,66860.0,66859.0,0.15392539]
[1722297898951,0.451528,66860.0,66859.0,0.15392539]
[1722297899427,0.68114816,66860.0,66859.0,0.15392539]
[1722297899638,1.00374431,66860.0,66859.0,0.15392539]
[1722297900073,1.0708521,66860.0,66859.0,0.15392539]
[1722297900313,0.87944734,66860.0,66859.0,0.15392539]
[1722297900544,0.94634914,66860.0,66859.0,0.15392539]
[1722297900749,1.0930159,66860.0,66859.0,0.010826]
[1722297900953,1.30267101,66860.0,66859.0,0.010826]
[1722297901202,1.41451713,66860.0,66859.0,0.010826]
[1722297901388,1.30267101,66860.0,66859.0,0.010826]
[1722297902028,1.4457704,66860.0,66859.0,0.010826]
[1722297902155,2.42147367,66860.0,66859.0,0.010826]
[1722297902356,2.65110891,66860.0,66859.0,0.010826]
[1722297902586,2.65110891,66860.0,66856.0,0.009262]
[1722297902587,1.662852,66857.0,66856.0,0.009262]
[1722297902790,1.099807,66853.0,66845.0,0.009251]
[1722297903049,2.41328609,66853.0,66845.0,0.009251]
[1722297903275,2.82244909,66853.0,66845.0,0.009251]
[1722297903414,2.60944909,66853.0,66845.0,0.009251]
[1722297903615,2.63837199,66853.0,66845.0,0.009251]
[1722297903818,2.33920899,66853.0,66845.0,0.009251]
[1722297904022,2.55700536,66853.0,66845.0,0.009251]
[1722297904217,2.71937557,66853.0,66845.0,0.009251]
[1722297904475,2.02698916,66853.0,66845.0,0.009251]
[1722297904686,2.2692457,66853.0,66845.0,0.009251]
[1722297905044,2.41999274,66853.0,66845.0,0.009251]
[1722297905238,2.72315574,66853.0,66845.0,0.009251]
[1722297905665,2.29671761,66853.0,66845.0,0.009251]
[1722297906095,2.30551292,66853.0,66845.0,0.009251]
[1722297906272,2.31551292,66853.0,66845.0,0.009251]
[1722297906475,2.30551292,66853.0,66845.0,0.009251]
[1722297906681,2.60626636,66853.0,66845.0,0.009251]
[1722297906876,2.30710336,66853.0,66845.0,0.009251]
[1722297907382,2.60626636,66853.0,66845.0,0.009251]
[1722297907593,2.30710336,66853.0,66845.0,0.009251]
[1722297907808,2.31710336,66853.0,66845.0,0.009251]
[1722297908009,2.61626636,66853.0,66845.0,0.009251]
[1722297908218,2.36753065,66853.0,66845.0,0.009251]
[1722297908422,2.37753065,66853.0,66845.0,0.009251]
[1722297908633,2.04489574,66853.0,66845.0,0.009251]
[1722297908762,2.00245201,66853.0,66845.0,0.009251]
[1722297909161,2.31161501,66853.0,66845.0,0.009251]
[1722297909366,2.00245201,66853.0,66845.0,0.009251]
[1722297909773,2.30161501,66853.0,66845.0,0.009251]
[1722297910775,2.31161501,66853.0,66845.0,0.009251]
[1722297911209,2.30000374,66853.0,66845.0,0.009251]
[1722297911609,2.29000374,66853.0,66845.0,0.009251]
[1722297911809,1.99084074,66853.0,66845.0,0.009251]
[1722297912458,2.29000374,66853.0,66845.0,0.009251]
[1722297913014,2.30000374,66853.0,66845.0,0.009251]
[1722297913220,2.32347591,66853.0,66845.0,0.009251]
[1722297913381,2.30000374,66853.0,66845.0,0.009251]
[1722297913798,2.49080374,66853.0,66845.0,0.009251]
[1722297913971,2.163972,66846.0,66845.0,0.009251]
[1722297914204,2.163972,66846.0,66825.0,0.0015542]
[1722297914205,1.184891,66839.0,66825.0,0.0015542]
[1722297914327,1.184891,66839.0,66820.0,0.009262]
[1722297914328,2.04693004,66839.0,66821.0,0.0015542]
[1722297914545,2.47053556,66839.0,66820.0,0.009262]
[1722297915152,2.21375329,66839.0,66820.0,0.009262]
[1722297915350,2.35685268,66839.0,66820.0,0.009262]
[1722297915753,2.0706539,66839.0,66825.0,0.0791]
[1722297915934,1.27838417,66839.0,66830.0,0.0626]
[1722297916138,1.08237123,66839.0,66830.0,0.0626]
[1722297916574,1.08337123,66839.0,66830.0,0.0626]
[1722297916799,1.08337123,66839.0,66832.0,0.0791]
[1722297917833,1.08337123,66839.0,66827.0,0.0783]
[1722297917834,1.69648804,66839.0,66827.0,0.0783]
[1722297918079,1.90048743,66839.0,66827.0,0.0783]
[1722297918471,1.90048899,66839.0,66827.0,0.0783]
[1722297918881,2.14744979,66839.0,66822.0,0.0783]
[1722297919086,2.22454979,66839.0,66822.0,0.0783]
[1722297919487,2.2129445,66839.0,66822.0,0.0783]
[1722297919704,2.22454579,66839.0,66822.0,0.0783]
[1722297919912,2.3129445,66839.0,66822.0,0.0783]
[1722297920114,2.3129445,66839.0,66820.0,0.009262]
[1722297920236,2.3229445,66839.0,66821.0,0.0015542]
[1722297920437,2.31395738,66839.0,66821.0,0.0015542]
[1722297920677,2.32395738,66839.0,66821.0,0.0015542]
[1722297920889,2.62318338,66839.0,66820.0,0.009262]
[1722297921455,2.61318338,66839.0,66820.0,0.009262]
[1722297922057,2.31395738,66839.0,66820.0,0.009262]
[1722297922725,2.61318338,66839.0,66820.0,0.009262]
[1722297922946,2.31395738,66839.0,66820.0,0.009262]
[1722297923610,2.31295738,66839.0,66820.0,0.009262]
[1722297923843,2.62618338,66839.0,66820.0,0.009262]
[1722297924286,2.31195885,66839.0,66820.0,0.009262]
[1722297924489,2.63466188,66839.0,66820.0,0.009262]
[1722297924718,2.64866188,66839.0,66820.0,0.009262]
[1722297924926,2.34943588,66839.0,66820.0,0.009262]
[1722297925136,2.21529567,66839.0,66820.0,0.009262]
[1722297925522,2.23889217,66839.0,66828.0,0.0783]